bitfinex/quotes_ETHUSD_20260129
["timestamp","ask_amount","ask_price","bid_price","bid_amount"]
[1769691252617,0.002,2934.7,2934.4,1.52886595]
[1769691252798,0.001,2934.9,2934.4,1.52886595]
[1769691255813,0.002,2934.5,2934.4,1.52886595]
[1769691264595,0.001,2934.9,2934.5,1.52886595]
[1769691269533,0.001,2934.9,2934.6,1.56599112]
[1769691269737,0.002,2934.7,2934.6,1.56599112]
[1769691270129,1.61490536,2934.7,2933.9,0.002]
[1769691270294,1.61290536,2934.5,2933.9,0.002]
[1769691270600,2.46492635,2934.2,2933.6,0.002]
[1769691270998,0.85202099,2934.2,2933.6,0.002]
[1769691273810,1.47464697,2934.5,2933.6,0.002]
[1769691276041,0.85196292,2934.4,2933.6,0.002]
[1769691276544,1.47464697,2934.3,2933.6,0.002]
[1769691278113,0.85202099,2934.2,2933.6,0.002]
[1769691280048,0.85202099,2934.2,2933.6,1.53551184]
[1769691280348,4.88265837,2934.3,2933.6,0.002]
[1769691280524,3.4080114,2934.3,2933.6,0.002]
[1769691281120,3.4080114,2934.3,2933.6,1.53551184]
[1769691281556,3.40788326,2934.4,2933.6,1.53551184]
[1769691281735,3.40788326,2934.4,2933.9,0.002]
[1769691281939,0.001,2934.3,2933.9,0.002]
[1769691282138,0.001,2934.3,2933.9,1.53551184]
[1769691283252,0.001,2934.3,2933.9,0.002]
[1769691283756,0.002,2934.7,2934.2,1.53351184]
[1769691283931,0.85282411,2934.9,2934.2,1.53351184]
[1769691284137,0.85282411,2934.9,2934.0,1.53351184]
[1769691285131,0.001,2934.9,2934.0,1.53351184]
[1769691286228,0.001,2934.9,2934.2,1.53351184]
[1769691288228,0.001,2934.9,2934.4,1.53351184]
[1769691293054,0.001,2934.9,2934.2,2.38552164]
[1769691293255,0.001,2934.9,2934.3,1.53351184]
[1769691293454,0.001,2934.7,2934.3,1.53351184]
[1769691294266,0.001,2934.7,2934.3,2.38550089]
[1769691294462,0.001,2934.7,2934.3,0.85198905]
[1769691294664,0.001,2934.7,2934.4,1.53351184]
[1769691295170,0.001,2934.7,2934.5,1.53351184]
[1769691296236,0.001,2934.9,2934.5,1.54566479]
[1769691297134,0.001,2934.9,2934.6,1.54566479]
[1769691300088,0.001,2934.9,2934.6,1.48118099]
[1769691300250,1.27903419,2934.9,2933.6,0.002]
[1769691300454,0.001,2934.9,2934.0,1.54566479]
[1769691300684,0.001,2934.9,2934.1,1.54566479]
[1769691300835,0.001,2934.9,2933.9,0.002]
[1769691300836,1.27981169,2934.9,2933.9,0.002]
[1769691301041,1.27981169,2934.9,2933.9,0.85410489]
[1769691301753,2.1295327,2934.8,2933.9,2.39976968]
[1769691304369,2.1295327,2934.8,2934.0,1.54566479]
[1769691304969,2.1295327,2934.8,2934.1,0.001]
[1769691305289,0.002,2934.7,2934.1,0.001]
[1769691307657,0.002,2934.7,2934.1,1.54666479]
[1769691309591,0.002,2934.7,2934.2,1.54566479]
[1769691312719,0.002,2934.7,2933.9,0.002]
[1769691312720,1.28075403,2934.7,2933.9,0.002]
[1769691312903,1.27775403,2934.5,2933.9,0.002]
[1769691313688,1.27863013,2934.7,2933.9,0.002]
[1769691313892,1.27863013,2934.7,2933.9,1.54766479]
[1769691316607,0.85190485,2934.6,2934.1,0.002]
[1769691316910,0.85290485,2934.6,2934.1,0.002]
[1769691320811,0.001,2934.6,2934.1,1.54766479]
[1769691329327,0.001,2934.4,2934.1,1.54766479]
[1769691341437,0.001,2934.2,2934.1,1.54766479]
[1769691341641,0.001,2934.4,2934.1,1.54766479]
[1769691342434,0.001,2934.4,2933.9,0.002]
[1769691342636,0.001,2934.4,2934.0,1.48781144]
[1769691343013,0.001,2934.6,2934.1,1.48781144]
[1769691343409,0.001,2934.6,2934.1,0.85204646]
[1769691343719,0.001,2934.6,2934.2,1.48781144]
[1769691349438,0.001,2934.6,2934.3,1.48781144]
[1769691349941,0.001,2934.9,2934.4,1.48781144]
[1769691352847,0.001,2934.7,2934.4,1.48781144]
[1769691354623,0.001,2934.9,2934.4,1.48781144]
[1769691355554,0.001,2934.9,2934.5,1.61135603]
[1769691356746,0.001,2934.9,2934.3,0.85197207]
[1769691357056,0.001,2934.9,2934.4,1.61135603]
[1769691357957,0.001,2934.9,2934.5,1.61135603]
[1769691360557,0.001,2934.9,2934.4,1.61135603]
[1769691361632,0.001,2934.9,2934.5,1.61135603]
[1769691364554,0.001,2934.9,2934.6,0.001]
[1769691364761,0.002,2934.7,2934.6,0.001]
[1769691365054,0.001,2934.9,2934.6,0.001]
[1769691365640,0.001,2934.9,2934.6,1.61235603]
[1769691365837,0.20533872,2935.1,2934.6,1.61235603]
[1769691366757,0.20533872,2935.1,2934.6,0.001]
[1769691366956,2.36325697,2935.1,2934.6,0.001]
[1769691367861,1.51149233,2935.1,2934.6,0.001]
[1769691369270,0.20533872,2935.1,2934.6,0.001]
[1769691371259,1.05711118,2935.1,2934.6,0.001]
[1769691372142,0.20533872,2935.1,2934.6,0.001]
[1769691377078,0.20533872,2935.1,2934.8,0.001]
[1769691377376,0.002,2934.9,2934.8,0.001]
[1769691383368,0.20733872,2935.1,2934.8,0.001]
[1769691383680,0.07977985,2935.1,2934.8,1.61235603]
[1769691384986,0.04633123,2935.1,2934.8,0.001]
[1769691385183,0.04633123,2935.1,2934.9,1.61135603]
[1769691389702,0.04633123,2935.1,2934.9,2.46317167]
[1769691389867,4.12015373,2935.9,2935.0,1.65402901]
[1769691390290,0.85155664,2935.8,2935.0,0.85178563]
[1769691390468,0.85155664,2935.8,2935.1,1.65402901]
[1769691400816,2.19041291,2935.8,2934.8,1.50734956]
[1769691400987,0.85155664,2935.8,2934.8,1.50734956]
[1769691401195,0.002,2935.6,2934.8,1.50734956]
[1769691404101,2.14246586,2935.7,2934.9,0.85181777]
[1769691405512,0.85160959,2935.7,2934.9,2.35816733]
[1769691405920,0.85160959,2935.7,2935.0,1.50634956]
[1769691406215,0.85356025,2935.8,2935.0,1.50634956]
[1769691406580,0.002,2935.8,2935.0,1.50634956]
[1769691406989,0.85357128,2935.8,2935.0,1.50634956]
[1769691407191,0.85357128,2935.8,2935.1,1.50634956]
[1769691407390,0.80357128,2935.8,2935.1,1.50634956]
[1769691409187,1.56554965,2935.9,2935.2,1.50634956]
[1769691409904,1.56553066,2935.9,2935.2,1.50634956]
[1769691410336,0.714,2935.9,2935.2,1.50634956]
[1769691410507,1.56553773,2935.9,2935.2,1.50634956]
[1769691411319,0.714,2935.9,2935.3,1.50634956]
[1769691411520,1.56553085,2935.9,2935.3,1.50634956]
[1769691411916,0.714,2935.9,2935.4,0.0340599]
[1769691412123,0.714,2935.9,2935.3,1.50634956]
[1769691412620,1.56552952,2935.9,2935.3,1.50634956]
[1769691413614,1.56552952,2935.9,2935.1,0.85173986]
[1769691413818,1.56552952,2935.9,2935.0,0.8517884]
[1769691413819,2.85903,2935.9,2935.0,0.8517884]
[1769691414019,1.29350048,2935.8,2935.0,0.8517884]
[1769691414190,0.002,2935.7,2935.0,0.8517884]
[1769691414515,0.002,2935.7,2935.0,2.35813796]
[1769691414989,0.002,2935.7,2935.1,2.35810458]
[1769691415413,0.002,2935.7,2935.1,2.35810252]
[1769691415811,0.002,2935.7,2935.1,1.50634956]
[1769691416832,0.002,2935.7,2935.2,1.59403462]
[1769691419304,0.002,2935.7,2935.3,2.44573631]
[1769691420407,0.002,2935.7,2935.4,1.59403462]
[1769691423725,0.002,2935.7,2935.0,0.85176329]
[1769691424020,0.002,2935.7,2935.0,0.85177393]
[1769691425115,0.002,2935.7,2935.1,0.851758]
[1769691426326,0.002,2935.7,2935.3,0.001]
[1769691436139,0.002,2935.7,2935.3,0.88676975]
[1769691436444,0.002,2935.7,2935.3,0.001]
[1769691437953,0.002,2935.7,2935.3,1.59503462]
[1769691439145,0.002,2935.7,2935.4,1.59403462]
[1769691440648,0.002,2935.9,2935.3,0.85269998]
[1769691440815,0.002,2935.9,2935.4,1.59403462]
[1769691441751,0.002,2935.9,2935.5,1.59403462]
[1769691443563,0.002,2936.1,2935.6,1.59403462]
[1769691443717,0.002,2936.1,2935.8,1.59403462]
[1769691448826,0.002,2936.1,2935.8,2.44558727]
[1769691450054,0.002,2936.1,2935.9,1.51670488]
[1769691451024,0.002,2936.1,2935.9,2.36820912]
[1769691452552,0.002,2936.1,2935.9,1.51670488]
[1769691453139,0.002,2936.1,2935.9,2.36822649]
[1769691454161,0.002,2936.1,2936.0,1.52085499]
[1769691454355,0.002,2936.1,2935.8,2.37239364]
[1769691454563,0.002,2936.1,2935.9,2.37238189]
[1769691454860,0.002,2936.1,2935.9,1.52085499]
[1769691455762,0.002,2936.1,2935.9,2.37237886]
[1769691456462,0.002,2936.1,2935.9,1.52085499]
[1769691456759,0.002,2936.1,2935.8,0.85155284]
[1769691458147,0.002,2936.1,2935.7,0.8515833]
[1769691458754,0.002,2936.1,2935.6,0.85259468]
[1769691459161,0.002,2936.1,2935.6,0.001]
[1769691459360,1.31764266,2936.1,2935.6,0.001]
[1769691459561,0.002,2936.1,2935.6,1.52185499]
[1769691459861,0.002,2936.1,2935.7,1.52085499]
[1769691462335,0.002,2936.1,2935.8,0.001]
[1769691462535,0.002,2935.9,2935.8,0.001]
[1769691469857,1.31921818,2935.9,2935.3,0.001]
[1769691470980,2.17075846,2935.9,2935.3,0.001]
[1769691475185,2.17075846,2935.9,2935.5,0.001]
[1769691475403,0.002,2935.7,2935.5,0.001]
[1769691480000,0.002,2935.7,2935.3,0.001]
[1769691480188,0.002,2935.7,2934.8,0.001]
[1769691480189,1.45943716,2935.6,2934.8,0.001]
[1769691481583,0.85164367,2935.5,2934.8,0.001]
[1769691481794,2.31191016,2935.5,2934.8,0.001]
[1769691482505,1.46108595,2935.4,2934.8,0.001]
[1769691483668,0.85170169,2935.3,2934.8,0.001]
[1769691484171,2.31442683,2935.3,2934.8,0.001]
[1769691486512,0.85170169,2935.3,2934.8,0.001]
[1769691487281,0.85170169,2935.3,2935.0,0.001]
[1769691488274,3.40670147,2935.4,2935.0,0.001]
[1769691493496,0.85161466,2935.6,2935.0,0.001]
[1769691493697,0.714,2935.5,2935.0,0.001]
[1769691494395,0.85161466,2935.6,2935.0,0.001]
[1769691494600,0.85167268,2935.4,2935.0,0.001]
[1769691494799,0.002,2935.7,2935.1,1.62179511]
[1769691495312,0.002,2935.9,2935.2,1.62179511]
[1769691495480,0.716,2936.1,2935.1,1.62179511]
[1769691496506,1.5674746,2936.1,2935.1,1.62179511]
[1769691496680,0.716,2936.1,2935.2,0.85173071]
[1769691496880,1.56747007,2936.1,2935.3,1.62179511]
[1769691497210,0.716,2936.1,2935.3,1.62179511]
[1769691497378,0.718,2936.1,2935.3,1.62179511]
[1769691497788,0.716,2936.1,2935.3,1.62179511]
[1769691497990,0.718,2936.1,2935.3,1.62179511]
[1769691498479,0.716,2936.1,2935.3,1.62179511]
[1769691498680,0.718,2936.1,2935.3,1.62179511]
[1769691498893,0.002,2935.9,2935.4,1.62179511]
[1769691501211,0.002,2935.9,2935.4,2.47346735]
[1769691501410,0.002,2935.9,2935.5,1.62179511]
[1769691501999,0.004,2935.9,2935.5,1.62179511]
[1769691504321,0.004,2935.9,2935.5,1.6558585]
[1769691505037,0.004,2935.9,2935.5,1.62179511]
[1769691505240,0.002,2935.9,2935.5,1.62179511]
[1769691505418,0.002,2935.9,2935.6,1.68216869]
[1769691505754,0.21192066,2936.4,2935.9,1.68216869]
[1769691505906,0.85131623,2936.7,2936.0,1.68216869]
[1769691506411,0.002,2937.1,2936.0,1.68216869]
[1769691510240,1.54755404,2937.1,2935.9,0.85151084]
[1769691510452,1.54555404,2937.0,2936.0,1.68216869]
[1769691511526,0.002,2936.9,2936.0,1.68216869]
[1769691512851,0.85323769,2936.9,2936.0,1.68216869]
[1769691516863,0.85323769,2936.9,2936.1,1.53373533]
[1769691519962,0.002,2936.9,2936.1,1.53373533]
[1769691523651,0.002,2936.9,2936.2,1.53473533]
[1769691523953,0.002,2936.7,2936.2,1.53473533]
[1769691531833,0.002,2936.7,2936.3,0.03405308]
[1769691532037,0.002,2936.7,2936.3,1.53373533]
[1769691532749,0.002,2936.7,2936.2,0.001]
[1769691533468,0.002,2936.7,2936.2,1.53473533]
[1769691536968,0.002,2936.7,2936.4,0.001]
[1769691537370,0.002,2936.5,2936.4,0.001]
[1769691540193,0.002,2936.7,2936.4,0.001]
[1769691546286,0.002,2936.7,2936.4,1.59832722]
[1769691547196,1.54376743,2936.7,2936.2,0.001]
[1769691548368,1.54176743,2936.6,2935.7,0.85156516]
[1769691548907,1.54176743,2936.6,2935.8,0.85154819]
[1769691550184,0.002,2936.5,2935.8,0.85154819]
[1769691554706,0.002,2936.5,2935.8,1.59732722]
[1769691557112,0.002,2936.5,2935.8,2.44885554]
[1769691561513,0.002,2936.5,2935.9,1.59732722]
[1769691562016,0.002,2936.5,2936.0,0.001]
[1769691568310,0.002,2936.5,2936.0,1.70465977]
[1769691569827,0.002,2936.5,2936.2,1.70365977]
[1769691571317,0.002,2936.9,2936.2,1.70365977]
[1769691571927,0.002,2936.9,2936.4,1.71350758]
[1769691573429,0.002,2936.7,2936.4,1.71350758]
[1769691576126,0.002,2936.7,2936.4,0.85138141]
[1769691576325,0.002,2936.7,2936.5,1.71350758]
[1769691579030,0.002,2936.9,2936.6,1.71350758]
[1769691582238,0.002,2936.9,2936.3,2.56489761]
[1769691582408,0.002,2936.9,2936.5,1.71350758]
[1769691583938,0.002,2936.9,2936.5,2.5648576]
[1769691585221,0.002,2936.9,2936.6,0.001]
[1769691585539,0.002,2936.7,2936.6,0.001]
[1769691586946,11.57298849,2937.4,2936.8,1.71350758]
[1769691586947,0.20953319,2937.4,2936.8,1.71350758]
[1769691587320,0.20953319,2937.4,2936.9,1.71350758]
[1769691590346,0.20953319,2937.4,2936.9,2.56474121]
[1769691592615,0.20953319,2937.4,2937.0,1.71350758]
[1769691592823,0.20953319,2937.4,2936.7,0.85127376]
[1769691592824,1.83857098,2937.4,2936.7,0.85127376]
[1769691593021,1.62903779,2937.3,2936.6,0.85230298]
[1769691593241,1.62903779,2937.3,2936.7,0.85128783]
[1769691593752,1.62903779,2937.3,2936.8,0.85126221]
[1769691593915,1.62903779,2937.3,2936.6,0.001]
[1769691596165,1.59294596,2937.2,2936.6,0.001]
[1769691597648,1.59294596,2937.2,2936.8,0.001]
[1769691598025,2.44412429,2937.2,2936.8,0.001]
[1769691601555,1.59294596,2937.2,2936.8,0.001]
[1769691601760,2.44409719,2937.2,2936.8,0.001]
[1769691605137,0.85115123,2937.2,2936.8,0.001]
[1769691605533,5.20688615,2937.4,2936.8,0.001]
[1769691605739,0.85112177,2937.3,2936.8,0.001]
[1769691607467,2.44406773,2937.3,2936.8,0.001]
[1769691610067,2.44406773,2937.3,2937.0,0.001]
[1769691610362,2.44406773,2937.3,2936.8,0.001]
[1769691611942,4.32694019,2937.4,2936.2,1.60451815]
[1769691611943,0.85120871,2937.0,2936.2,1.60451815]
[1769691612337,0.713,2936.9,2936.2,1.60451815]
[1769691612965,0.713,2936.9,2935.6,3.40743969]
[1769691612966,0.713,2936.9,2936.0,2.45699193]
[1769691613158,2.30594596,2936.9,2936.0,2.45699193]
[1769691613666,2.30594596,2936.9,2936.0,1.60551815]
[1769691614033,0.85126668,2936.8,2936.0,2.45701551]
[1769691614459,0.85126668,2936.8,2936.0,1.60551815]
[1769691614882,3.15720316,2936.9,2936.1,1.60451815]
[1769691618881,8.47313116,2937.3,2936.2,1.60451815]
[1769691618882,0.713,2937.1,2936.2,1.60451815]
[1769691619682,0.85120871,2937.0,2936.3,1.60451815]
[1769691621863,0.85120871,2937.0,2936.3,1.60551815]
[1769691625854,0.73202529,2937.0,2936.3,1.60551815]
[1769691630184,1.56419886,2937.1,2936.4,1.66830817]
[1769691631790,0.713,2937.1,2936.4,1.66830817]
[1769691632374,0.713,2937.1,2936.4,0.85137607]
[1769691632685,0.713,2937.1,2936.5,1.62371784]
[1769691633787,0.713,2937.1,2936.5,1.62471784]
[1769691634087,0.002,2936.9,2936.5,1.62471784]
[1769691646097,0.002,2936.9,2936.7,0.001]
[1769691647890,0.002,2936.9,2936.7,1.62471784]
[1769691659620,0.002,2936.9,2936.7,0.001]
[1769691665826,0.002,2936.9,2936.7,1.61810744]
[1769691668642,0.002,2936.9,2936.7,0.001]
[1769691668841,0.002,2937.1,2936.8,1.61710744]
[1769691669647,0.002,2937.1,2936.9,0.001]
[1769691672840,0.002,2937.1,2936.9,1.61810744]
[1769691673834,0.002,2937.1,2936.9,2.46932306]
[1769691674242,0.002,2937.1,2936.9,0.85221562]
[1769691675937,0.002,2937.1,2936.9,0.001]
[1769691683956,0.002,2937.1,2936.9,1.61810744]
[1769691684119,0.002,2937.1,2936.9,0.001]
[1769691684455,0.002,2937.1,2936.9,1.61810744]
[1769691684752,0.002,2937.1,2936.9,0.001]
[1769691703131,0.002,2937.1,2936.9,2.45898257]
[1769691704268,0.002,2937.1,2936.9,0.001]
[1769691704437,0.002,2937.1,2936.9,1.60774488]
[1769691706169,0.002,2937.1,2936.9,2.45897693]
[1769691706967,0.002,2937.1,2937.0,1.60674488]
[1769691708072,0.002,2937.1,2937.0,2.45795359]
[1769691711174,1.57714012,2937.9,2937.1,1.60674488]
[1769691711175,0.002,2937.9,2937.1,1.60674488]
[1769691711481,0.002,2938.3,2937.4,1.60674488]
[1769691712353,0.002,2938.3,2937.6,1.60674488]
[1769691714671,0.002,2938.3,2937.7,0.85100588]
[1769691715450,0.002,2938.3,2937.6,2.45776021]
[1769691717171,1.68932831,2938.3,2937.2,1.61777644]
[1769691717363,1.68932831,2938.3,2937.6,0.85103482]
[1769691718479,1.68932831,2938.3,2937.5,2.43377338]
[1769691718772,2.54016952,2938.3,2937.5,2.43377338]
[1769691720542,1.68732831,2938.2,2937.3,0.85110149]
[1769691720742,1.68732831,2938.2,2937.4,0.85109141]
[1769691721551,1.68732831,2938.2,2937.5,0.85105803]
[1769691722142,1.68732831,2938.2,2937.4,0.8510928]
[1769691725882,1.68732831,2938.2,2937.4,2.43382321]
[1769691726377,0.002,2938.3,2937.5,1.58273041]
[1769691727183,0.002,2938.0,2937.5,1.58273041]
[1769691728446,0.002,2938.0,2937.6,0.85103485]
[1769691728851,0.002,2938.0,2937.6,2.43376526]
[1769691729359,0.002,2938.0,2937.7,1.58273041]
[1769691730593,0.002,2938.0,2937.7,2.43373521]
[1769691731784,0.002,2938.0,2937.8,1.58273041]
[1769691735098,0.002,2938.0,2937.8,2.43370143]
[1769691740403,0.002,2938.2,2937.8,1.58273041]
[1769691740794,0.002,2938.3,2937.6,0.001]
[1769691740795,0.002,2938.1,2937.6,0.001]
[1769691745824,0.00029808,2938.1,2937.6,0.001]
[1769691746118,0.002,2938.3,2937.6,0.001]
[1769691749114,1.62884748,2938.3,2937.6,0.001]
[1769691752503,1.62884748,2938.3,2937.8,0.001]
[1769691752898,1.63493059,2938.2,2937.8,0.001]
[1769691756398,0.002,2938.3,2937.8,0.001]
[1769691756599,0.85283727,2938.3,2937.8,0.001]
[1769691756928,2.48776786,2938.3,2937.8,0.001]
[1769691757123,2.48776786,2938.3,2937.6,0.001]
[1769691759024,0.002,2938.3,2937.7,1.68459467]
[1769691759192,0.002,2938.3,2937.6,0.001]
[1769691759193,0.85283272,2938.3,2937.6,0.001]
[1769691760828,0.85283272,2938.3,2937.6,1.68559467]
[1769691761608,0.002,2938.3,2937.6,2.5366244]
[1769691764298,0.002,2938.3,2937.7,1.68459467]
[1769691764536,0.002,2938.3,2937.7,1.71858324]
[1769691764698,0.002,2938.3,2937.8,0.001]
[1769691764996,0.002,2938.1,2937.8,0.001]
[1769691767432,0.002,2938.3,2937.8,0.001]
[1769691767640,0.002,2938.3,2937.8,1.68559467]
[1769691770234,0.002,2938.3,2938.0,1.68459467]
[1769691772108,0.85069788,2938.8,2938.0,1.68459467]
[1769691772310,3.40256857,2939.0,2938.1,1.68459467]
[1769691772952,0.85062946,2939.0,2938.1,1.68459467]
[1769691774846,0.85062946,2939.0,2938.3,1.68459467]
[1769691775143,2.48556005,2939.0,2938.1,1.68459467]
[1769691775468,1.57932467,2938.9,2938.1,1.68459467]
[1769691777314,0.85068735,2938.8,2938.2,0.001]
[1769691777515,0.85268735,2938.8,2938.2,0.001]
[1769691780820,2.43201202,2938.8,2938.2,0.001]
[1769691781025,1.57932467,2938.7,2938.2,0.001]
[1769691782057,0.85074525,2938.6,2938.2,0.001]
[1769691782219,2.43006992,2938.6,2938.2,0.001]
[1769691783051,0.85074525,2938.6,2938.2,0.001]
[1769691784515,0.8507163,2938.7,2938.2,0.001]
[1769691785053,2.43004097,2938.7,2938.2,0.001]
[1769691786319,0.8507163,2938.7,2938.2,0.001]
[1769691786526,0.002,2938.8,2938.2,0.001]
[1769691786939,1.58132467,2938.8,2938.2,0.001]
[1769691789655,0.8507163,2938.7,2938.2,0.001]
[1769691790454,0.002,2938.5,2938.2,0.001]
[1769691803165,0.002,2938.5,2938.2,1.65363684]
[1769691803805,0.002,2939.0,2938.5,1.65263684]
[1769691803939,0.85263675,2939.0,2938.3,1.65263684]
[1769691804947,0.002,2939.0,2938.3,1.65263684]
[1769691805656,0.002,2939.0,2938.4,1.56029956]
[1769691806285,0.002,2939.0,2938.4,1.59433168]
[1769691806484,0.002,2939.0,2938.4,1.56029956]
[1769691806690,1.52127235,2939.0,2938.2,0.001]
[1769691806891,1.51927235,2938.9,2938.2,0.001]
[1769691807384,0.85068735,2938.8,2938.2,0.001]
[1769691807742,2.3699597,2938.8,2938.2,0.001]
[1769691809044,1.51927235,2938.7,2938.2,0.001]
[1769691809578,1.51927235,2938.5,2937.6,1.56129956]
[1769691809746,2.23227235,2938.4,2937.6,0.001]
[1769691810571,2.23227235,2938.4,2937.6,1.56129956]
[1769691810784,0.713,2938.5,2937.6,1.56129956]
[1769691811588,0.85080315,2938.4,2937.6,1.56129956]
[1769691812455,1.62793786,2938.2,2937.6,0.001]
[1769691812850,0.85264957,2939.0,2938.2,1.64810095]
[1769691813049,0.85264957,2939.0,2937.8,1.56871567]
[1769691813050,0.24620738,2938.9,2937.8,1.56871567]
[1769691813657,0.8507163,2938.7,2937.8,1.56871567]
[1769691813880,0.74703343,2938.6,2937.9,1.56871567]
[1769691814270,0.96448673,2938.6,2937.7,1.56871567]
[1769691815490,0.002,2939.0,2937.8,0.85095413]
[1769691815662,0.85263813,2939.0,2938.1,1.56419066]
[1769691815868,0.002,2938.3,2938.1,1.56419066]
[1769691816077,0.85263813,2939.0,2937.9,0.85093402]
[1769691816078,0.002,2939.0,2938.4,1.56419066]
[1769691816276,0.14743889,2939.1,2938.5,1.56419066]
[1769691817760,0.14743889,2939.1,2938.7,1.56419066]
[1769691818061,0.713,2939.4,2938.7,1.56419066]
[1769691820709,0.713,2939.4,2938.8,2.41487801]
[1769691820854,0.713,2939.4,2938.8,1.56419066]
[1769691822774,0.713,2939.4,2938.9,1.56419066]
[1769691824571,0.85048856,2939.5,2938.9,1.56419066]
[1769691824771,0.713,2939.4,2938.7,1.56419066]
[1769691824967,1.00509636,2939.4,2938.5,2.41494611]
[1769691825583,1.00509636,2939.4,2938.6,0.85074511]
[1769691825785,1.00509636,2939.4,2938.6,2.41493577]
[1769691826473,0.713,2939.4,2938.6,2.41493577]
[1769691826675,1.563522,2939.4,2938.6,2.41493577]
[1769691826903,0.850522,2939.4,2938.6,2.41493577]
[1769691827065,0.713,2939.3,2938.6,2.41493577]
[1769691828200,0.002,2939.2,2938.6,2.41493577]
[1769691828382,0.713,2939.1,2938.6,2.41493577]
[1769691829310,0.713,2939.1,2938.7,1.56419066]
[1769691832808,0.713,2939.1,2938.5,2.41494256]
[1769691833315,0.713,2939.1,2938.6,0.85074381]
[1769691833609,0.713,2939.1,2938.6,2.41493447]
[1769691834613,0.713,2939.1,2938.6,1.56419066]
[1769691834923,0.713,2939.1,2938.3,0.001]
[1769691834924,0.31014157,2939.0,2938.3,0.001]
[1769691835587,0.002,2939.2,2938.6,1.54869895]
[1769691835782,0.002,2939.2,2938.7,1.54869895]
[1769691836716,0.002,2939.2,2938.8,0.85068735]
[1769691836924,0.002,2939.2,2938.9,1.54869895]
[1769691838117,0.002,2939.2,2938.7,1.54869895]
[1769691838821,0.713,2939.1,2938.7,1.54869895]
[1769691840823,0.713,2939.1,2938.9,0.001]
[1769691841019,0.713,2939.0,2938.9,0.001]
[1769691841924,0.002,2939.2,2938.9,1.54969895]
[1769691842168,0.002,2939.7,2939.1,1.54669895]
[1769691842347,0.08642218,2939.9,2939.3,1.54569895]
[1769691842662,0.81505026,2939.9,2939.3,1.54569895]
[1769691842846,1.66542062,2939.9,2939.0,1.54569895]
[1769691843019,0.81505026,2939.9,2939.2,1.54569895]
[1769691843557,1.66542387,2939.9,2939.2,1.54569895]
[1769691843732,0.3284915,2939.8,2939.0,2.39632114]
[1769691844245,0.01562808,2939.7,2939.1,1.54569895]
[1769691845551,0.01562808,2939.7,2939.1,2.39629278]
[1769691845729,0.01562808,2939.6,2939.1,1.54569895]
[1769691845928,0.01562808,2939.8,2939.1,1.54569895]
[1769691846353,0.01562808,2939.7,2939.1,1.54569895]
[1769691846654,0.01562808,2939.7,2939.2,1.54569895]
[1769691846840,0.01562808,2939.6,2939.0,2.39632607]
[1769691847148,0.713,2939.6,2939.1,1.54569895]
[1769691847959,0.01562808,2939.5,2938.9,1.54669895]
[1769691848661,0.01562808,2939.5,2938.9,2.39735005]
[1769691848863,0.01562808,2939.5,2939.1,1.54569895]
[1769691851261,0.713,2939.4,2939.2,1.54569895]
[1769691852159,0.713,2939.4,2939.3,0.001]
[1769691855060,0.72862808,2939.4,2939.3,0.001]
[1769691855358,0.01562808,2939.4,2939.3,0.001]
[1769691855564,0.72862808,2939.4,2939.3,0.001]
[1769691857055,0.72862808,2939.4,2938.9,0.001]
[1769691857251,1.56351671,2939.4,2938.9,0.001]
[1769691857648,0.713,2939.4,2938.9,0.001]
[1769691858046,0.713,2939.4,2938.9,1.54719895]
[1769691862458,0.01562808,2939.3,2938.9,1.54719895]
[1769691863759,0.01562808,2939.3,2939.1,0.001]
[1769691864761,0.713,2939.2,2939.1,0.001]
[1769691865064,0.72862808,2939.2,2938.7,1.53925025]
[1769691865269,0.01562808,2939.1,2938.7,1.53925025]
[1769691868971,0.01562808,2939.0,2938.7,1.53925025]
[1769691869751,0.01562808,2939.0,2938.4,1.62838894]
[1769691869951,0.86628403,2939.0,2938.4,1.62838894]
[1769691870163,0.01562808,2939.0,2938.4,1.62838894]
[1769691870374,0.86626316,2939.0,2938.4,1.62838894]
[1769691872879,0.01562808,2939.0,2938.4,1.62838894]
[1769691873274,0.01562808,2939.0,2938.4,2.47919175]
[1769691873478,0.01562808,2939.0,2938.5,1.61792259]
[1769691875479,0.01562808,2939.0,2938.6,1.61892259]
[1769691877751,0.713,2938.9,2938.6,1.61892259]
[1769691880590,0.01562808,2938.8,2938.6,1.61892259]
[1769691885472,0.65754681,2938.9,2938.7,1.61792259]
[1769691887097,0.65754681,2938.9,2938.8,0.001]
[1769691902286,0.65754681,2938.9,2938.7,1.61792259]
[1769691902287,0.65754681,2938.9,2938.7,1.54784132]
[1769691902479,0.65754681,2938.9,2938.6,0.001]
[1769691909606,0.65754681,2938.9,2938.8,0.001]
[1769691916412,0.65754681,2938.9,2938.5,1.63323366]
[1769691916717,0.8506584,2938.9,2938.3,0.001]
[1769691917015,0.713,2938.8,2938.3,0.001]
[1769691918520,0.713,2938.7,2938.3,0.001]
[1769691921796,0.713,2938.7,2938.5,0.001]
[1769691922309,0.85066904,2938.9,2938.5,0.001]
[1769691922514,0.713,2938.6,2938.5,0.001]
[1769691924831,0.85062946,2939.0,2938.5,0.001]
[1769691925032,0.713,2938.9,2938.5,0.001]
[1769691929737,0.713,2938.8,2938.5,1.59891709]
[1769691933240,0.002,2938.6,2938.5,1.59891709]
[1769691934843,0.85045584,2939.6,2938.6,1.73101867]
[1769691935141,0.713,2939.5,2938.6,1.73101867]
[1769691935714,0.85051371,2939.4,2938.6,1.73101867]
[1769691941617,0.85045584,2939.6,2938.6,1.73101867]
[1769691941817,0.713,2939.5,2938.6,1.73101867]